{"text_format":"1","workbook":"xlsx","n_sheets":1,"sheets":["الكارتة"],"not_rendered":{"charts":0,"images":0,"macros":0,"external_links":1,"defined_names":1,"comments":0,"pivot_tables":0},"unopened":[],"bounds":{"document_bytes":16777216,"sheet_cells":100000,"rows_first":2000,"rows_last":500,"rows_between":2000,"halvings":0,"cell_chars":16384,"cell_head_chars":4096},"cells_cut":0,"cells_raw":0,"read":"whole","date_system":"1900"}

{"sheet":"الكارتة","index":0,"n_rows":44,"n_cols":75,"rows_kept":44,"cut":false,"hidden":false,"merged":[[44,7,44,14],[44,67,44,74],[41,40,41,48],[41,50,41,52],[41,54,41,56],[41,58,41,61],[42,10,42,12],[42,13,42,16],[42,17,42,19],[38,10,38,12],[38,13,38,15],[38,16,38,18],[39,40,39,44],[39,46,39,48],[40,4,40,6],[40,7,40,9],[40,10,40,12],[36,4,36,6],[36,7,36,9],[36,10,36,12],[37,40,37,42],[37,43,37,45],[37,46,37,48],[34,4,34,6],[34,7,34,9],[34,10,34,12],[35,40,35,42],[35,43,35,45],[35,46,35,48],[32,4,32,6],[32,7,32,9],[32,10,32,12],[33,40,33,42],[33,43,33,45],[33,46,33,48],[29,39,30,49],[29,50,30,52],[29,53,30,56],[29,57,30,67],[29,68,30,70],[29,71,30,74],[29,1,30,11],[29,12,30,14],[29,15,30,18],[29,19,30,29],[29,30,30,32],[29,33,30,36],[27,39,28,49],[27,50,28,52],[27,53,28,56],[27,57,28,67],[27,68,28,70],[27,71,28,74],[27,1,28,11],[27,12,28,14],[27,15,28,18],[27,19,28,29],[27,30,28,32],[27,33,28,36],[25,39,26,49],[25,50,26,52],[25,53,26,56],[25,57,26,67],[25,68,26,70],[25,71,26,74],[25,1,26,11],[25,12,26,14],[25,15,26,18],[25,19,26,29],[25,30,26,32],[25,33,26,36],[23,39,24,49],[23,50,24,52],[23,53,24,56],[23,57,24,67],[23,68,24,70],[23,71,24,74],[23,1,24,11],[23,12,24,14],[23,15,24,18],[23,19,24,29],[23,30,24,32],[23,33,24,36],[21,39,22,49],[21,50,22,52],[21,53,22,56],[21,57,22,67],[21,68,22,70],[21,71,22,74],[21,1,22,11],[21,12,22,14],[21,15,22,18],[21,19,22,29],[21,30,22,32],[21,33,22,36],[19,39,20,49],[19,50,20,52],[19,53,20,56],[19,57,20,67],[19,68,20,70],[19,71,20,74],[19,1,20,11],[19,12,20,14],[19,15,20,18],[19,19,20,29],[19,30,20,32],[19,33,20,36],[16,71,16,74],[17,39,18,49],[17,50,18,52],[17,53,18,56],[17,57,18,67],[17,68,18,70],[17,71,18,74],[17,1,18,11],[17,12,18,14],[17,15,18,18],[17,19,18,29],[17,30,18,32],[17,33,18,36],[14,1,16,11],[14,12,15,18],[14,19,16,29],[14,30,15,36],[14,39,16,49],[14,50,15,56],[14,57,16,67],[14,68,15,74],[16,12,16,14],[16,15,16,18],[16,30,16,32],[10,12,10,16],[10,17,10,18],[10,19,10,23],[10,50,10,54],[10,55,10,56],[10,57,10,61],[11,72,11,73],[12,6,12,7],[12,8,12,9],[12,10,12,11],[12,30,12,32],[12,44,12,45],[12,46,12,47],[12,48,12,49],[12,68,12,70],[0,37,0,38],[5,37,5,38],[8,20,8,23],[8,24,8,27],[8,58,8,61],[16,33,16,36],[16,50,16,52],[16,53,16,56],[16,68,16,70],[8,62,8,65]]}
[null,1,2,3,4,5,6,7,8,9,10,11,12,13,14,15,16,17,18,19,20,21,22,23,24,25,26,27,28,29,30,31,32,33,34,35,36,{"$f":"$AL$6","v":1},null,39,40,41,42,43,44,45,46,47,48,49,50,51,52,53,54,55,56,57,58,59,60,61,62,63,64,65,66,67,68,69,70,71,72,73,74]
[null,null,null,null,null,null,null,null,null,null,null,null,null,null,null,null,null,null,null,null,null,null,null,null,null,null,null,null,null,null,null,null,null,null,null,null,null,null,null,null,null,null,null,null,null,"        المطلوب  طباعة مع إخفاء الصفوف الصفرية فى العمود A من( A33:A43) "]
[]
[]
[]
[null,null,null,null,null,null,null,null,null,null,null,null,null,null,null,null,null,null,null,null,null,null,null,null,null,null,null,null,null,null,null,null,null,null,null,null,null,1]
[]
[]
[null,null,null,null,null,null,null,null,null,null,null,null,null,null,null,null,null,null,null,null,"       رقم السجل/",null,null,null,null,null,null,null,null,null,null,null,null,null,null,null,null,null,null,null,null,null,null,null,null,null,null,null,null,null,null,null,null,null,null,null,null,null," رقم السجل/"]
[]
[null,"بيان المرتبات وما فى حكمها عن المدة من ",null,null,null,null,null,null,null,null,null,null,{"$f":"IFERROR(VLOOKUP($AL$1,'[1]حساب الضرائب'!$A$9:$GF$208,185,FALSE),\"\")","v":"2020-01-01"},null,null,null,null,{"$f":"IFERROR(VLOOKUP($AL$1,'[1]حساب الضرائب'!$A$9:$GF$208,186,FALSE),\"\")","v":"حتى"},null,{"$f":"IFERROR(VLOOKUP($AL$1,'[1]حساب الضرائب'!$A$9:$GF$208,187,FALSE),\"\")","v":"2020-12-31"},null,null,null,null,null,null,null,null,null,null,null,null,null,null,null,null,null,null,null,"بيان المرتبات وما فى حكمها عن المدة من ",null,null,null,null,null,null,null,null,null,null,{"$f":"IFERROR(VLOOKUP($AL$1,'[1]حساب الضرائب'!$A$9:$GF$208,185,FALSE),\"\")","v":"2020-01-01"},null,null,null,null,{"$f":"IFERROR(VLOOKUP($AL$1,'[1]حساب الضرائب'!$A$9:$GF$208,186,FALSE),\"\")","v":"حتى"},null,{"$f":"IFERROR(VLOOKUP($AL$1,'[1]حساب الضرائب'!$A$9:$GF$208,187,FALSE),\"\")","v":"2020-12-31"}]
[null,"اسم صاحب البيان/",null,null,null,null,null,null,null,null,null,null,null,null,null,null,null,null,null,null,"وظيفتة/",null,null,{"$f":"IFERROR(VLOOKUP($AL$1,'[1]حساب الضرائب'!$A$9:$GF$208,4,FALSE),\"\")","v":"كبيرمعلمين"},null,null,null,null,null,null,null,"الدرجة/",null,null,{"$f":"IFERROR(VLOOKUP($AL$1,'[1]حساب الضرائب'!$A$9:$GF$208,6,FALSE),\"\")","v":"الاولى"},null,null,null,null,"اسم صاحب البيان/",null,null,null,null,null,null,null,null,null,null,null,null,null,null,null,null,null,null,"وظيفتة/",null,null,{"$f":"IFERROR(VLOOKUP($AL$1,'[1]حساب الضرائب'!$A$9:$GZ$208,4,FALSE),\"\")","v":"كبيرمعلمين"},null,null,null,null,null,null,null,"الدرجة/",null,null,{"$f":"IFERROR(VLOOKUP($AL$1,'[1]حساب الضرائب'!$A$9:$GZ$208,6,FALSE),\"\")","v":"الاولى"}]
[null,"الأساسى المجرد/",null,null,null,null,{"$f":"IFERROR(VLOOKUP($AL$1,'[1]حساب الضرائب'!$A$9:$GF$208,14,FALSE),\"\")","v":197},null,{"$f":"IFERROR(VLOOKUP($AL$1,'[1]حساب الضرائب'!$A$9:$GF$208,167,FALSE),\"\")","v":"*6="},null,{"$f":"IFERROR(VLOOKUP($AL$1,'[1]حساب الضرائب'!$A$9:$GF$208,16,FALSE),\"\")","v":1182},null,null,null,null,null,null,null,null,null,null,null,null,null,null,"الاساسى الشامل/",null,null,null,null,{"$f":"IFERROR(VLOOKUP($AL$1,'[1]حساب الضرائب'!$A$9:$GZ$208,7,FALSE),\"\")","v":696.3},null,null,null,null,null,null,null,null,"الأساسى المجرد/",null,null,null,null,{"$f":"IFERROR(VLOOKUP($AL$1,'[1]حساب الضرائب'!$A$9:$GZ$208,67,FALSE),\"\")","v":197},null,{"$f":"IFERROR(VLOOKUP($AL$1,'[1]حساب الضرائب'!$A$9:$GZ$208,167,FALSE),\"\")","v":"*6="},null,{"$f":"IFERROR(VLOOKUP($AL$1,'[1]حساب الضرائب'!$A$9:$GZ$208,69,FALSE),\"\")","v":1182},null,null,null,null,null,null,null,null,null,null,null,null,null,null,"الاساسى الشامل/",null,null,null,null,{"$f":"IFERROR(VLOOKUP($AL$1,'[1]حساب الضرائب'!$A$9:$GZ$208,7,FALSE),\"\")","v":696.3}]
[]
[null,"بيان الدخل السنوى",null,null,null,null,null,null,null,null,null,null,"االمبلغ",null,null,null,null,null,null,"الاعفاءات والاستقطاعات",null,null,null,null,null,null,null,null,null,null,null,null,null,null,null,null,null,null,null,"بيان الدخل السنوى",null,null,null,null,null,null,null,null,null,null,"االمبلغ",null,null,null,null,null,null,"الاعفاءات والاستقطاعات"]
[]
[null,null,null,null,null,null,null,null,null,null,null,null,"ق",null,null,"ج",null,null,null,null,null,null,null,null,null,null,null,null,null,null,"ق",null,null,"ج",null,null,null,null,null,null,null,null,null,null,null,null,null,null,null,null,"ق",null,null,"ج",null,null,null,null,null,null,null,null,null,null,null,null,null,null,"ق",null,null,"ج"]
[null,"المجرد",null,null,null,null,null,null,null,null,null,null,null,null,null,{"$f":"IFERROR(VLOOKUP($AL$1,'[1]حساب الضرائب'!$A$9:$GF$208,16,FALSE),\"\")","v":1182},null,null,null,"معاشات 11%",null,null,null,null,null,null,null,null,null,null,null,null,null,{"$f":"IFERROR(VLOOKUP($AL$1,'[1]حساب الضرائب'!$A$9:$GF$208,35,FALSE),\"\")","v":3035},null,null,null,null,null,"المجرد",null,null,null,null,null,null,null,null,null,null,null,null,null,{"$f":"IFERROR(VLOOKUP($AL$1,'[1]حساب الضرائب'!$A$9:$GZ$208,69,FALSE),\"\")","v":1182},null,null,null,"معاشات 11%",null,null,null,null,null,null,null,null,null,null,null,null,null,{"$f":"IFERROR(VLOOKUP($AL$1,'[1]حساب الضرائب'!$A$9:$GZ$208,88,FALSE),\"\")","v":3351}]
[]
[null,"مكافأت حوافزإضافى",null,null,null,null,null,null,null,null,null,null,null,null,null,{"$f":"IFERROR(VLOOKUP($AL$1,'[1]حساب الضرائب'!$A$9:$GF$208,62,FALSE),\"\")","v":26409},null,null,null,null,null,null,null,null,null,null,null,null,null,null,null,null,null,null,null,null,null,null,null,"مكافأت حوافزإضافى",null,null,null,null,null,null,null,null,null,null,null,null,null,{"$f":"IFERROR(VLOOKUP($AL$1,'[1]حساب الضرائب'!$A$9:$GZ$208,106,FALSE),\"\")","v":1848}]
[]
[null,"جملة الدخل",null,null,null,null,null,null,null,null,null,null,null,null,null,{"$f":"IFERROR(VLOOKUP($AL$1,'[1]حساب الضرائب'!$A$9:$GF$208,32,FALSE),\"\")","v":27591},null,null,null,"صندوق التكافل 16.25%",null,null,null,null,null,null,null,null,null,null,null,null,null,{"$f":"IFERROR(VLOOKUP($AL$1,'[1]حساب الضرائب'!$A$9:$GF$208,36,FALSE),\"\")","v":918},null,null,null,null,null,"جملة الدخل",null,null,null,null,null,null,null,null,null,null,null,null,null,{"$f":"IFERROR(VLOOKUP($AL$1,'[1]حساب الضرائب'!$A$9:$GZ$208,85,FALSE),\"\")","v":30468},null,null,null,"صندوق التكافل 16.25%",null,null,null,null,null,null,null,null,null,null,null,null,null,{"$f":"IFERROR(VLOOKUP($AL$1,'[1]حساب الضرائب'!$A$9:$GZ$208,89,FALSE),\"\")","v":918}]
[]
[null,"الاعفاءات والاستقطاعات",null,null,null,null,null,null,null,null,null,null,null,null,null,{"$f":"IFERROR(VLOOKUP($AL$1,'[1]حساب الضرائب'!$A$9:$GF$208,43,FALSE),\"\")","v":4146},null,null,null,"نقابة الازهر",null,null,null,null,null,null,null,null,null,null,null,null,null,{"$f":"IFERROR(VLOOKUP($AL$1,'[1]حساب الضرائب'!$A$9:$GF$208,38,FALSE),\"\")","v":12},null,null,null,null,null,"الاعفاءات والاستقطاعات",null,null,null,null,null,null,null,null,null,null,null,null,null,{"$f":"IFERROR(VLOOKUP($AL$1,'[1]حساب الضرائب'!$A$9:$GZ$208,94,FALSE),\"\")","v":4482},null,null,null,"نقابة الازهر",null,null,null,null,null,null,null,null,null,null,null,null,null,{"$f":"IFERROR(VLOOKUP($AL$1,'[1]حساب الضرائب'!$A$9:$GZ$208,90,FALSE),\"\")","v":12}]
[]
[null,"الباقى",null,null,null,null,null,null,null,null,null,null,null,null,null,{"$f":"IFERROR(VLOOKUP($AL$1,'[1]حساب الضرائب'!$A$9:$GF$208,44,FALSE),\"\")","v":23445},null,null,null,"الدمغات",null,null,null,null,null,null,null,null,null,null,null,null,null,{"$f":"IFERROR(VLOOKUP($AL$1,'[1]حساب الضرائب'!$A$9:$GF$208,42,FALSE),\"\")","v":181},null,null,null,null,null,"الباقى",null,null,null,null,null,null,null,null,null,null,null,null,null,{"$f":"IFERROR(VLOOKUP($AL$1,'[1]حساب الضرائب'!$A$9:$GZ$208,95,FALSE),\"\")","v":25986},null,null,null,"الدمغات",null,null,null,null,null,null,null,null,null,null,null,null,null,{"$f":"IFERROR(VLOOKUP($AL$1,'[1]حساب الضرائب'!$A$9:$GZ$208,93,FALSE),\"\")","v":201}]
[]
[null,"الأعفاء الشخصى",null,null,null,null,null,null,null,null,null,null,null,null,null,{"$f":"IFERROR(VLOOKUP($AL$1,'[1]حساب الضرائب'!$A$9:$GF$208,177,FALSE),\"\")","v":7500},null,null,null,null,null,null,null,null,null,null,null,null,null,null,null,null,null,null,null,null,null,null,null,"الأعفاء الشخصى",null,null,null,null,null,null,null,null,null,null,null,null,null,{"$f":"IFERROR(VLOOKUP($AL$1,'[1]حساب الضرائب'!$A$9:$GZ$208,178,FALSE),\"\")","v":12000}]
[]
[null,"الوعاء الضريبى",null,null,null,null,null,null,null,null,null,null,null,null,null,{"$f":"IFERROR(VLOOKUP($AL$1,'[1]حساب الضرائب'!$A$9:$GF$208,45,FALSE),\"\")","v":15945},null,null,null,"جملة الاعفاءات والاستقطاعات",null,null,null,null,null,null,null,null,null,null,null,null,null,{"$f":"IFERROR(VLOOKUP($AL$1,'[1]حساب الضرائب'!$A$9:$GF$208,43,FALSE),\"\")","v":4146},null,null,null,null,null,"الوعاء الضريبى",null,null,null,null,null,null,null,null,null,null,null,null,null,{"$f":"IFERROR(VLOOKUP($AL$1,'[1]حساب الضرائب'!$A$9:$GZ$208,96,FALSE),\"\")","v":13986},null,null,null,"جملة الاعفاءات والاستقطاعات",null,null,null,null,null,null,null,null,null,null,null,null,null,{"$f":"IFERROR(VLOOKUP($AL$1,'[1]حساب الضرائب'!$A$9:$GZ$208,94,FALSE),\"\")","v":4482}]
[]
[]
[{"$f":"$K$33","v":0},null,null,null,{"$f":"IFERROR(VLOOKUP($AL$1,'[1]حساب الضرائب'!$A$9:$GF$208,46,FALSE),\"\")","v":0},null,null,{"$f":"IFERROR(VLOOKUP($AL$1,'[1]حساب الضرائب'!$A$9:$GF$208,168,FALSE),\"\")","v":"×1.5%="},null,null,{"$f":"IFERROR(VLOOKUP($AL$1,'[1]حساب الضرائب'!$A$9:$GF$208,47,FALSE),\"\")","v":0}]
[{"$f":"$AU$34","v":187},null,null,null,null,null,null,null,null,null,null,null,null,null,null,null,null,null,null,null,null,null,null,null,null,null,null,null,null,null,null,null,null,null,null,null,null,null,null,null,{"$f":"IFERROR(VLOOKUP($AL$1,'[1]حساب الضرائب'!$A$9:$GZ$208,97,FALSE),\"\")","v":7500},null,null,{"$f":"IFERROR(VLOOKUP($AL$1,'[1]حساب الضرائب'!$A$9:$GZ$208,169,FALSE),\"\")","v":"×2.5%="},null,null,{"$f":"IFERROR(VLOOKUP($AL$1,'[1]حساب الضرائب'!$A$9:$GZ$208,98,FALSE),\"\")","v":187}]
[{"$f":"$K$35","v":1100},null,null,null,{"$f":"IFERROR(VLOOKUP($AL$1,'[1]حساب الضرائب'!$A$9:$GF$208,48,FALSE),\"\")","v":11000},null,null,{"$f":"IFERROR(VLOOKUP($AL$1,'[1]حساب الضرائب'!$A$9:$GF$208,170,FALSE),\"\")","v":"×10%="},null,null,{"$f":"IFERROR(VLOOKUP($AL$1,'[1]حساب الضرائب'!$A$9:$GF$208,50,FALSE),\"\")","v":1100}]
[{"$f":"$AU$36","v":648},null,null,null,null,null,null,null,null,null,null,null,null,null,null,null,null,null,null,null,null,null,null,null,null,null,null,null,null,null,null,null,null,null,null,null,null,null,null,null,{"$f":"IFERROR(VLOOKUP($AL$1,'[1]حساب الضرائب'!$A$9:$GZ$208,99,FALSE),\"\")","v":6486},null,null,{"$f":"IFERROR(VLOOKUP($AL$1,'[1]حساب الضرائب'!$A$9:$GZ$208,170,FALSE),\"\")","v":"×10%="},null,null,{"$f":"IFERROR(VLOOKUP($AL$1,'[1]حساب الضرائب'!$A$9:$GZ$208,100,FALSE),\"\")","v":648}]
[{"$f":"$K$35","v":1100},null,null,null,{"$f":"IFERROR(VLOOKUP($AL$1,'[1]حساب الضرائب'!$A$9:$GF$208,52,FALSE),\"\")","v":4945},null,null,{"$f":"IFERROR(VLOOKUP($AL$1,'[1]حساب الضرائب'!$A$9:$GF$208,171,FALSE),\"\")","v":"×15%="},null,null,{"$f":"IFERROR(VLOOKUP($AL$1,'[1]حساب الضرائب'!$A$9:$GF$208,53,FALSE),\"\")","v":742}]
[{"$f":"$AU$38","v":0},null,null,null,null,null,null,null,null,null,null,null,null,null,null,null,null,null,null,null,null,null,null,null,null,null,null,null,null,null,null,null,null,null,null,null,null,null,null,null,{"$f":"IFERROR(VLOOKUP($AL$1,'[1]حساب الضرائب'!$A$9:$GZ$208,101,FALSE),\"\")","v":0},null,null,{"$f":"IFERROR(VLOOKUP($AL$1,'[1]حساب الضرائب'!$A$9:$GZ$208,171,FALSE),\"\")","v":"×15%="},null,null,{"$f":"IFERROR(VLOOKUP($AL$1,'[1]حساب الضرائب'!$A$9:$GZ$208,102,FALSE),\"\")","v":0}]
[{"$f":"$K$35","v":1100},null,null,null,null,null,null,null,null,{"$f":"IFERROR(VLOOKUP($AL$1,'[1]حساب الضرائب'!$A$9:$GF$208,173,FALSE),\"\")","v":"="},{"$f":"IFERROR(VLOOKUP($AL$1,'[1]حساب الضرائب'!$A$9:$GF$208,54,FALSE),\"\")","v":1842},null,null,{"$f":"IFERROR(VLOOKUP($AL$1,'[1]حساب الضرائب'!$A$9:$GF$208,175,FALSE),\"\")","v":"× 55% ="},null,null,{"$f":"IFERROR(VLOOKUP($AL$1,'[1]حساب الضرائب'!$A$9:$GF$208,55,FALSE),\"\")","v":1013}]
[{"$f":"$AU$40","v":835},null,null,null,null,null,null,null,null,null,null,null,null,null,null,null,null,null,null,null,null,null,null,null,null,null,null,null,null,null,null,null,null,null,null,null,null,null,null,null,{"$f":"IFERROR(VLOOKUP($AL$1,'[1]حساب الضرائب'!$A$9:$GZ$208,165,FALSE),\"\")","v":"الضريبة المستحقة "},null,null,null,null,{"$f":"IFERROR(VLOOKUP($AL$1,'[1]حساب الضرائب'!$A$9:$GZ$208,173,FALSE),\"\")","v":"="},{"$f":"IFERROR(VLOOKUP($AL$1,'[1]حساب الضرائب'!$A$9:$GZ$208,105,FALSE),\"\")","v":835}]
[{"$f":"$K$41","v":0},null,null,null,{"$f":"IFERROR(VLOOKUP($AL$1,'[1]حساب الضرائب'!$A$9:$GF$208,56,FALSE),\"\")","v":0},null,null,{"$f":"IFERROR(VLOOKUP($AL$1,'[1]حساب الضرائب'!$A$9:$GF$208,172,FALSE),\"\")","v":"×20%="},null,null,{"$f":"IFERROR(VLOOKUP($AL$1,'[1]حساب الضرائب'!$A$9:$GF$208,57,FALSE),\"\")","v":0}]
[{"$f":"$BG$42","v":1848},null,null,null,null,null,null,null,null,null,null,null,null,null,null,null,null,null,null,null,null,null,null,null,null,null,null,null,null,null,null,null,null,null,null,null,null,null,null,null,{"$f":"IFERROR(VLOOKUP($AL$1,'[1]حساب الضرائب'!$A$9:$GZ$208,166,FALSE),\"\")","v":"الضريبة المستحقة عن السنة كلها"},null,null,null,null,null,null,null,null,{"$f":"IFERROR(VLOOKUP($AL$1,'[1]حساب الضرائب'!$A$9:$GZ$208,173,FALSE),\"\")","v":"="},{"$f":"IFERROR(VLOOKUP($AL$1,'[1]حساب الضرائب'!$A$9:$GZ$208,105,FALSE),\"\")","v":835},null,null,{"$f":"IFERROR(VLOOKUP($AL$1,'[1]حساب الضرائب'!$A$9:$GZ$208,174,FALSE),\"\")","v":"+"},{"$f":"IFERROR(VLOOKUP($AL$1,'[1]حساب الضرائب'!$A$9:$GZ$208,60,FALSE),\"\")","v":1013},null,null,{"$f":"IFERROR(VLOOKUP($AL$1,'[1]حساب الضرائب'!$A$9:$GZ$208,173,FALSE),\"\")","v":"="},{"$f":"IFERROR(VLOOKUP($AL$1,'[1]حساب الضرائب'!$A$9:$GZ$208,106,FALSE),\"\")","v":1848}]
[{"$f":"$K$41","v":0},null,null,null,null,null,null,null,null,{"$f":"IFERROR(VLOOKUP($AL$1,'[1]حساب الضرائب'!$A$9:$GF$208,173,FALSE),\"\")","v":"="},{"$f":"IFERROR(VLOOKUP($AL$1,'[1]حساب الضرائب'!$A$9:$GF$208,58,FALSE),\"\")","v":1842},null,null,{"$f":"IFERROR(VLOOKUP($AL$1,'[1]حساب الضرائب'!$A$9:$GF$208,176,FALSE),\"\")","v":"× 92.5% ="},null,null,null,{"$f":"IFERROR(VLOOKUP($AL$1,'[1]حساب الضرائب'!$A$9:$GF$208,59,FALSE),\"\")","v":1704}]
[null,null,null,null,null,null,null,null,null,null,"الماهيات",null,null,null,null,null,null,null,null,null,null,null,null,null,null,null,null,null,null,null,null,null,null,null,null,null,null,null,null,null,null,null,null,null,null,null,null,null,null,null,null,null,null,null,null,null,null,null,null,null,null,null,null,null,null,null,null,null,"                      المديرالعام"]